fUST/lending_fUST_20250723
["ID","MTS","AMOUNT","RATE_DAILY","PERIOD"]
[374214050,1753245056452,-160.0,0.0002411,5]
[374214052,1753245056461,-231.27315472,0.00024116,2]
[374214054,1753245056470,-1008.49459655,0.00024116,2]
[374214056,1753245056480,-2157.0,0.00024126,2]
[374214058,1753245056489,-971.991,0.00024126,2]
[374214060,1753245056499,-407.0,0.00024126,2]
[374214062,1753245056508,-932.37942252,0.00024189,2]
[374214064,1753245056519,-389.38713249,0.00024192,2]
[374214066,1753245056528,-429.674968,0.00024192,2]
[374214068,1753245056537,-429.674968,0.00024192,2]
[374214070,1753245056546,-857.7937064,0.00024192,2]
[374214072,1753245056556,-509.59567748,0.00024195,2]
[374214074,1753245056569,-151.0,0.000242,10]
[374214076,1753245056578,-151.0,0.000242,5]
[374214078,1753245056589,-5976.71230369,0.0002421,10]
[374214080,1753245056598,-555.0,0.00024226,2]
[374214082,1753245056608,-155.451601,0.00024269,2]
[374214084,1753245056617,-509.59567748,0.00024295,2]
[374214086,1753245056627,-413.09,0.000243,7]
[374214088,1753245056636,-526.15909479,0.000243,10]
[374214090,1753245056645,-214.67886746,0.000243,10]
[374214092,1753245056658,-389.38713249,0.00024301,2]
[374214094,1753245056667,-555.0,0.00024322,2]
[374214096,1753245056676,-391.41905948,0.00024364,2]
[374214098,1753245056686,-151.0,0.00024383,2]
[374214100,1753245056696,-500.0,0.00024383,2]
[374214102,1753245056706,-500.0,0.00024383,2]
[374214104,1753245056715,-460.0,0.00024383,2]
[374214106,1753245056724,-1306.7,0.00024383,2]
[374214108,1753245056733,-998.31,0.00024383,2]
[374214110,1753245056742,-460.0,0.00024383,2]
[374214112,1753245056751,-600.93,0.00024383,2]
[374214114,1753245056760,-1678.91,0.00024383,2]
[374214116,1753245056769,-1213.93,0.00024383,2]
[374214118,1753245056779,-2119.6,0.00024383,2]
[374214120,1753245056788,-460.0,0.00024383,2]
[374214122,1753245056798,-460.0,0.00024383,2]
[374214124,1753245056807,-460.0,0.00024383,2]
[374214126,1753245056816,-460.0,0.00024383,2]
[374214128,1753245056825,-460.0,0.00024383,2]
[374214130,1753245056834,-1298.88,0.00024383,2]
[374214132,1753245056844,-460.0,0.00024383,2]
[374214134,1753245056853,-460.0,0.00024383,2]
[374214136,1753245056862,-1537.6,0.00024383,2]
[374214138,1753245056872,-460.0,0.00024383,2]
[374214140,1753245056881,-460.0,0.00024383,2]
[374214142,1753245056890,-1468.89,0.00024383,2]
[374214144,1753245056899,-670.43,0.00024383,2]
[374214146,1753245056909,-460.0,0.00024383,2]
[374214148,1753245056918,-481.44,0.00024383,2]
[374214150,1753245056928,-1580.88,0.00024383,2]
[374214152,1753245056937,-460.0,0.00024383,2]
[374214154,1753245056947,-510.0,0.00024383,2]
[374214156,1753245056956,-2016.14,0.00024383,2]
[374214158,1753245056965,-1063.69,0.00024383,2]
[374214160,1753245056976,-460.0,0.00024383,2]
[374214162,1753245056986,-509.59567748,0.00024395,2]
[374214164,1753245056995,-5356.69357085,0.000244,2]
[374214166,1753245057004,-5870.75113371,0.000244,2]
[374214168,1753245057013,-192.90361979,0.000244,2]
[374214170,1753245057022,-10029.3,0.00024417,7]
[374214172,1753245057031,-555.0,0.00024436,2]
[374214174,1753245057040,-389.38713249,0.00024438,2]
[374214176,1753245057050,-5976.71230369,0.00024452,11]
[374214178,1753245057058,-192.90361971,0.00024475,2]
[374214180,1753245057068,-509.59567748,0.00024495,2]
[374214182,1753245057077,-113893.67850799,0.000245,4]
[374214197,1753245057214,214.67886746,0.00026,120]
[374214250,1753245057706,-500.0,0.00019129,2]
[374214252,1753245057715,-120.0,0.00019129,2]
[374214401,1753245484332,171.94493098,0.00026027,120]
[374214402,1753245693720,514.412443,0.00013699,2]
[374214447,1753246231968,-408.55115141,0.00019,3]
[374214449,1753246231979,-1105.0,0.00019,2]
[374214452,1753246232001,-300.0,0.00019177,2]
[374214454,1753246232012,-165.0,0.00019177,2]
[374214457,1753246232021,-1200.0,0.00019177,2]
[374214458,1753246232031,-666.0,0.00019178,2]
[374214461,1753246232040,-190.871614,0.00019178,2]
[374214463,1753246232049,-4000.1258238,0.00019178,2]
[374214465,1753246232060,-1200.0,0.00019515,2]
[374214467,1753246232069,-24900.0,0.00019516,2]
[374214469,1753246232079,-349.64228348,0.00020087,2]
[374214470,1753246232088,-31544.56555725,0.00020187,2]
[374214473,1753246232098,-514.412443,0.00020187,2]
[374214476,1753246232109,-607.998,0.00020648,2]
[374214477,1753246232119,-349.64228344,0.000208,2]
[374214479,1753246232129,-160.0,0.00020852,2]
[374214481,1753246232139,-12622.36869388,0.00020852,2]
[374214485,1753246232151,-160.0,0.00020852,2]
[374214489,1753246232160,-231.11583447,0.00020852,2]
[374214492,1753246232170,-840.06856235,0.00020852,2]
[374214495,1753246232180,-476.696448,0.00020852,2]
[374214498,1753246232189,-160.0,0.00020852,2]
[374214501,1753246232201,-215.84326551,0.00020852,2]
[374214503,1753246232210,-214.67886746,0.00020852,2]
[374214505,1753246232219,-160.0,0.00020852,2]
[374214507,1753246232229,-160.0,0.00020852,2]
[374214509,1753246232238,-160.0,0.00020852,2]
[374214511,1753246232252,-160.0,0.00020852,2]
[374214512,1753246232262,-526.15909479,0.00020852,2]
[374214513,1753246232271,-501.36167493,0.000209,2]
[374214514,1753246232280,-2313.08119077,0.000209,4]
[374214515,1753246232290,-502.47379318,0.00020973,2]
[374214516,1753246232300,-504.35785339,0.00020973,2]
[374214517,1753246232310,-2313.08119065,0.00021072,4]
[374214518,1753246232319,-2313.08119065,0.00021245,4]
[374214519,1753246232330,-2313.08119065,0.00021417,5]
[374214520,1753246232339,-349.64228344,0.00021514,2]
[374214521,1753246232350,-429.674968,0.00021544,2]
[374214522,1753246232359,-2313.08119065,0.0002159,5]
[374214523,1753246232369,-497.68,0.00021615,2]
[374214524,1753246232380,-2210.04569296,0.00021717,2]
[374214525,1753246232390,-2921.27407375,0.00021717,2]
[374214526,1753246232399,-6645.85,0.0002175,10]
[374214527,1753246232409,-552.42240262,0.0002176,2]
[374214528,1753246232418,-500.0,0.0002176,2]
[374214529,1753246232427,-500.0,0.0002176,2]
[374214530,1753246232436,-500.0,0.0002176,2]
[374214531,1753246232446,-292.46812256,0.0002176,2]
[374214532,1753246232455,-500.0,0.0002176,2]
[374214533,1753246232465,-500.0,0.0002176,2]
[374214534,1753246232474,-319.05428444,0.0002176,2]
[374214535,1753246232484,-500.0,0.0002176,2]
[374214536,1753246232495,-500.0,0.0002176,2]
[374214537,1753246232504,-203.16429299,0.0002176,2]
[374214538,1753246232513,-500.0,0.0002176,2]
[374214539,1753246232523,-500.0,0.0002176,2]
[374214540,1753246232532,-506.34662488,0.0002176,2]
[374214541,1753246232541,-500.0,0.0002176,2]
[374214542,1753246232551,-500.0,0.0002176,2]
[374214543,1753246232560,-500.0,0.0002176,2]
[374214544,1753246232571,-500.0,0.0002176,2]
[374214545,1753246232580,-500.0,0.0002176,2]
[374214546,1753246232590,-500.0,0.0002176,2]
[374214547,1753246232599,-500.0,0.0002176,2]
[374214548,1753246232609,-500.0,0.0002176,2]
[374214549,1753246232623,-500.0,0.0002176,2]
[374214550,1753246232632,-500.0,0.0002176,2]
[374214551,1753246232642,-500.0,0.0002176,2]
[374214552,1753246232652,-500.0,0.0002176,2]
[374214553,1753246232662,-500.0,0.0002176,2]
[374214554,1753246232672,-500.0,0.0002176,2]
[374214555,1753246232681,-500.0,0.0002176,2]
[374214556,1753246232690,-513.53568837,0.0002176,2]
[374214557,1753246232700,-500.0,0.0002176,2]
[374214558,1753246232710,-500.0,0.0002176,2]
[374214559,1753246232722,-500.0,0.0002176,2]
[374214560,1753246232736,-486.26229816,0.0002176,2]
[374214561,1753246232747,-550.0,0.0002176,2]
[374214562,1753246232756,-500.0,0.0002176,2]
[374214563,1753246232766,-500.0,0.0002176,2]
[374214564,1753246232776,-500.0,0.0002176,2]
[374214565,1753246232786,-500.0,0.0002176,2]
[374214566,1753246232795,-500.0,0.0002176,2]
[374214567,1753246232804,-500.0,0.0002176,2]
[374214568,1753246232814,-500.0,0.0002176,2]
[374214569,1753246232824,-500.0,0.0002176,2]
[374214570,1753246232833,-500.0,0.0002176,2]
[374214571,1753246232843,-500.0,0.0002176,2]
[374214572,1753246232852,-500.0,0.0002176,2]
[374214573,1753246232861,-500.0,0.0002176,2]
[374214574,1753246232870,-500.0,0.0002176,2]
[374214575,1753246233020,-500.0,0.0002176,2]
[374214576,1753246233035,-500.0,0.0002176,2]
[374214577,1753246233045,-500.0,0.0002176,2]
[374214578,1753246233055,-500.0,0.0002176,2]
[374214579,1753246233065,-500.0,0.0002176,2]
[374214580,1753246233074,-500.0,0.0002176,2]
[374214581,1753246233084,-500.0,0.0002176,2]
[374214582,1753246233094,-500.0,0.0002176,2]
[374214583,1753246233103,-500.0,0.0002176,2]
[374214584,1753246233113,-500.0,0.0002176,2]
[374214585,1753246233123,-482.96182058,0.0002176,2]
[374214586,1753246233134,-292.57560057,0.0002176,2]
[374214587,1753246233144,-500.0,0.0002176,2]
[374214588,1753246233154,-500.0,0.0002176,2]
[374214589,1753246233164,-500.0,0.0002176,2]
[374214590,1753246233174,-500.0,0.0002176,2]
[374214591,1753246233184,-500.0,0.0002176,2]
[374214592,1753246233194,-500.0,0.0002176,2]
[374214593,1753246233204,-500.0,0.0002176,2]
[374214594,1753246233214,-500.0,0.0002176,2]
[374214595,1753246233223,-500.0,0.0002176,2]
[374214596,1753246233232,-500.0,0.0002176,2]
[374214597,1753246233242,-618.62964076,0.0002176,2]
[374214598,1753246233252,-500.0,0.0002176,2]
[374214599,1753246233262,-500.0,0.0002176,2]
[374214600,1753246233272,-500.0,0.0002176,2]
[374214601,1753246233281,-500.0,0.0002176,2]
[374214602,1753246233291,-417.01825478,0.0002176,2]
[374214603,1753246233301,-2313.08119065,0.00021762,5]
[374214604,1753246233310,-500.0,0.00021782,2]
[374214605,1753246233320,-140141.3423198,0.00021817,2]
[374214606,1753246233329,-17679.06371995,0.00021817,3]
[374214607,1753246233339,-160.0,0.00021817,3]
[374214608,1753246233349,-214.67886746,0.00021817,3]
[374214609,1753246233359,-461.49150646,0.00021917,2]
[374214610,1753246233368,-460.0,0.00021917,2]
[374214611,1753246233378,-601.60912722,0.00021917,2]
[374214612,1753246233388,-465.99757499,0.00021917,2]
[374214613,1753246233398,-460.0,0.00021917,2]
[374214614,1753246233407,-462.63956107,0.00021917,2]
[374214615,1753246233417,-460.0,0.00021917,2]
[374214616,1753246233427,-464.27507111,0.00021917,2]
[374214617,1753246233436,-460.0,0.00021917,2]
[374214618,1753246233445,-460.0,0.00021917,2]
[374214619,1753246233455,-460.0,0.00021917,2]
[374214620,1753246233464,-460.0,0.00021917,2]
[374214621,1753246233474,-460.0,0.00021917,2]
[374214622,1753246233484,-460.0,0.00021917,2]
[374214623,1753246233493,-460.0,0.00021917,2]
[374214624,1753246233502,-460.0,0.00021917,2]
[374214625,1753246233511,-460.0,0.00021917,2]
[374214626,1753246233521,-460.0,0.00021917,2]
[374214627,1753246233530,-527.31591432,0.00021917,2]
[374214628,1753246233540,-463.15464199,0.00021917,2]
[374214629,1753246233549,-463.79774747,0.00021917,2]
[374214630,1753246233558,-460.0,0.00021917,2]
[374214631,1753246233568,-460.0,0.00021917,2]
[374214632,1753246233578,-460.0,0.00021917,2]
[374214633,1753246233587,-460.0,0.00021917,2]
[374214634,1753246233597,-460.0,0.00021917,2]
[374214635,1753246233606,-462.28676759,0.00021917,2]
[374214636,1753246233616,-460.0,0.00021917,2]
[374214637,1753246233626,-460.0,0.00021917,2]
[374214638,1753246233635,-460.0,0.00021917,2]
[374214639,1753246233645,-463.15134521,0.00021917,2]
[374214640,1753246233654,-460.0,0.00021917,2]
[374214641,1753246233664,-460.0,0.00021917,2]
[374214642,1753246233673,-460.0,0.00021917,2]
[374214643,1753246233683,-460.0,0.00021917,2]
[374214644,1753246233693,-460.0,0.00021917,2]
[374214645,1753246233703,-460.0,0.00021917,2]
[374214646,1753246233712,-460.0,0.00021917,2]
[374214647,1753246233724,-460.0,0.00021917,2]
[374214648,1753246233733,-460.0,0.00021917,2]
[374214649,1753246233743,-422.95511391,0.00021917,2]
[374214650,1753246233752,-460.0,0.00021917,2]
[374214651,1753246233762,-460.0,0.00021917,2]
[374214652,1753246233771,-460.0,0.00021917,2]
[374214653,1753246233781,-460.0,0.00021917,2]
[374214654,1753246233791,-460.0,0.00021917,2]
[374214655,1753246233801,-460.0,0.00021917,2]
[374214656,1753246233811,-460.0,0.00021917,2]
[374214657,1753246233821,-460.0,0.00021917,2]
[374214658,1753246233830,-460.0,0.00021917,2]
[374214659,1753246233839,-361.76866059,0.00021917,2]
[374214660,1753246233849,-460.0,0.00021917,2]
[374214661,1753246233859,-460.0,0.00021917,2]
[374214662,1753246233869,-462.7954845,0.00021917,2]
[374214663,1753246233879,-460.0,0.00021917,2]
[374214664,1753246233888,-460.0,0.00021917,2]
[374214665,1753246233897,-460.0,0.00021917,2]
[374214666,1753246233906,-460.0,0.00021917,2]
[374214667,1753246233916,-460.0,0.00021917,2]
[374214668,1753246233925,-460.85918328,0.00021917,2]
[374214669,1753246233934,-460.0,0.00021917,2]
[374214670,1753246233943,-460.0,0.00021917,2]
[374214671,1753246233952,-460.0,0.00021917,2]
[374214672,1753246233962,-460.0,0.00021917,2]
[374214673,1753246233971,-460.0,0.00021917,2]
[374214674,1753246233981,-460.61158607,0.00021917,2]
[374214675,1753246233991,-462.27257057,0.00021917,2]
[374214676,1753246234000,-460.0,0.00021917,2]
[374214677,1753246234010,-460.0,0.00021917,2]
[374214678,1753246234019,-528.92532036,0.00021917,2]
[374214679,1753246234029,-500.0,0.00021917,2]
[374214680,1753246234038,-504.36445048,0.00021917,2]
[374214681,1753246234048,-461.70479876,0.00021917,2]
[374214682,1753246234057,-383.84475895,0.00021917,2]
[374214683,1753246234066,-509.55282375,0.00021917,2]
[374214684,1753246234075,-463.32757539,0.00021917,2]
[374214685,1753246234085,-464.54345825,0.00021917,2]
[374214686,1753246234094,-539.4908176,0.00021917,2]
[374214687,1753246234103,-460.0,0.00021917,2]
[374214688,1753246234113,-460.0,0.00021917,2]
[374214689,1753246234123,-460.0,0.00021917,2]
[374214690,1753246234132,-460.7002595,0.00021917,2]
[374214691,1753246234141,-461.68815062,0.00021917,2]
[374214692,1753246234151,-460.0,0.00021917,2]
[374214693,1753246234160,-462.44361793,0.00021917,2]
[374214694,1753246234169,-460.0,0.00021917,2]
[374214695,1753246234179,-460.0,0.00021917,2]
[374214696,1753246234188,-460.0,0.00021917,2]
[374214697,1753246234197,-461.24517883,0.00021917,2]
[374214698,1753246234207,-462.51698105,0.00021917,2]
[374214699,1753246234216,-460.0,0.00021917,2]
[374214700,1753246234226,-282.48096707,0.00021917,2]
[374214701,1753246234236,-460.0,0.00021917,2]
[374214702,1753246234246,-462.72480328,0.00021917,2]
[374214703,1753246234255,-460.0,0.00021917,2]
[374214704,1753246234265,-460.0,0.00021917,2]
[374214705,1753246234274,-460.0,0.00021917,2]
[374214706,1753246234284,-319.98236285,0.00021917,2]
[374214707,1753246234303,-140.01763715,0.00021917,2]
[374214708,1753246234313,-460.0,0.00021917,2]
[374214709,1753246234323,-460.0,0.00021917,2]
[374214710,1753246234333,-142.89250735,0.00021917,2]
[374214711,1753246234349,-317.10749265,0.00021917,2]
[374214712,1753246234360,-460.0,0.00021917,2]
[374214713,1753246234373,-83.35976885,0.00021917,2]
[374214714,1753246234389,-298.25819252,0.00021917,2]
[374214715,1753246234402,-78.38203863,0.00021917,2]
[374214716,1753246234411,-460.0,0.00021917,2]
[374214717,1753246234422,-460.0,0.00021917,2]
[374214718,1753246234432,-480.06554279,0.00021917,2]
[374214719,1753246234442,-460.0,0.00021917,2]
[374214720,1753246234454,-460.0,0.00021917,2]
[374214721,1753246234465,-460.0,0.00021917,2]
[374214722,1753246234475,-460.0,0.00021917,2]
[374214723,1753246234484,-460.0,0.00021917,2]
[374214724,1753246234495,-462.69739602,0.00021917,2]
[374214725,1753246234504,-160.74646531,0.00021917,2]
[374214726,1753246234513,-462.33360268,0.00021917,2]
[374214727,1753246234522,-460.0,0.00021917,2]
[374214728,1753246234532,-465.34503784,0.00021917,2]
[374214729,1753246234542,-440.50909362,0.00021917,2]
[374214730,1753246234551,-460.0,0.00021917,2]
[374214731,1753246234562,-464.6504215,0.00021917,2]
[374214732,1753246234571,-463.15339768,0.00021917,2]
[374214733,1753246234581,-464.84625056,0.00021917,2]
[374214734,1753246234590,-463.10878809,0.00021917,2]
[374214735,1753246234600,-460.0,0.00021917,2]
[374214736,1753246234609,-1170.08,0.00021917,2]
[374214737,1753246234619,-460.0,0.00021917,2]
[374214738,1753246234628,-500.0,0.00021917,2]
[374214739,1753246234638,-500.0,0.00021917,2]
[374214740,1753246234647,-500.0,0.00021917,2]
[374214741,1753246234657,-500.0,0.00021917,2]
[374214742,1753246234667,-313.1899546,0.00021917,2]
[374214743,1753246234676,-513.26568702,0.00021917,2]
[374214744,1753246234686,-460.0,0.00021917,2]
[374214745,1753246234695,-460.0,0.00021917,2]
[374214746,1753246234705,-460.0,0.00021917,2]
[374214747,1753246234715,-460.0,0.00021917,2]
[374214748,1753246234729,-460.0,0.00021917,2]
[374214749,1753246234740,-460.0,0.00021917,2]
[374214750,1753246234750,-460.0,0.00021917,2]
[374214751,1753246234760,-464.48690914,0.00021917,2]
[374214752,1753246234771,-460.0,0.00021917,2]
[374214753,1753246234781,-460.0,0.00021917,2]
[374214754,1753246234791,-460.0,0.00021917,2]
[374214755,1753246234802,-460.78157828,0.00021917,2]
[374214756,1753246234813,-460.0,0.00021917,2]
[374214757,1753246234823,-460.0,0.00021917,2]
[374214758,1753246234832,-460.0,0.00021917,2]
[374214759,1753246234842,-460.0,0.00021917,2]
[374214760,1753246234851,-462.04628,0.00021917,2]
[374214761,1753246234860,-548.15750851,0.00021917,2]
[374214762,1753246234870,-461.73592332,0.00021917,2]
[374214763,1753246234879,-460.0,0.00021917,2]
[374214764,1753246234890,-460.0,0.00021917,2]
[374214765,1753246234900,-460.0,0.00021917,2]
[374214766,1753246234910,-462.9335632,0.00021917,2]
[374214767,1753246234921,-460.0,0.00021917,2]
[374214768,1753246234931,-460.0,0.00021917,2]
[374214769,1753246234941,-460.0,0.00021917,2]
[374214770,1753246234951,-460.0,0.00021917,2]
[374214771,1753246234960,-500.0,0.00021917,2]
[374214772,1753246234971,-500.0,0.00021917,2]
[374214773,1753246234982,-451.10006748,0.00021917,2]
[374214774,1753246234992,-460.0,0.00021917,2]
[374214775,1753246235001,-464.09313869,0.00021917,2]
[374214776,1753246235011,-460.0,0.00021917,2]
[374214777,1753246235021,-460.0,0.00021917,2]
[374214778,1753246235031,-460.0,0.00021917,2]
[374214779,1753246235041,-463.26174246,0.00021917,2]
[374214780,1753246235051,-460.0,0.00021917,2]
[374214781,1753246235061,-460.0,0.00021917,2]
[374214782,1753246235070,-460.0,0.00021917,2]
[374214783,1753246235079,-460.0,0.00021917,2]
[374214784,1753246235088,-332.78981045,0.00021917,2]
[374214785,1753246235098,-460.0,0.00021917,2]
[374214786,1753246235107,-460.0,0.00021917,2]
[374214787,1753246235118,-460.0,0.00021917,2]
[374214788,1753246235128,-462.53637737,0.00021917,2]
[374214789,1753246235137,-460.0,0.00021917,2]
[374214790,1753246235147,-460.0,0.00021917,2]
[374214791,1753246235156,-532.14488382,0.00021917,2]
[374214792,1753246235166,-460.0,0.00021917,2]
[374214793,1753246235175,-462.54211144,0.00021917,2]
[374214794,1753246235185,-460.0,0.00021917,2]
[374214795,1753246235194,-460.0,0.00021917,2]
[374214796,1753246235204,-462.88915775,0.00021917,2]
[374214797,1753246235214,-471.13,0.00021917,2]
[374214798,1753246235225,-461.2954037,0.00021917,2]
[374214799,1753246235235,-465.85154903,0.00021917,2]
[374214800,1753246235245,-464.95798481,0.00021917,2]
[374214801,1753246235255,-460.0,0.00021917,2]
[374214802,1753246235265,-460.0,0.00021917,2]
[374214803,1753246235275,-460.0,0.00021917,2]
[374214804,1753246235284,-460.0,0.00021917,2]
[374214805,1753246235302,-460.0,0.00021917,2]
[374214806,1753246235314,-191.40658711,0.00021917,2]
[374214807,1753246235324,-460.79259234,0.00021917,2]
[374214808,1753246235334,-500.0,0.00021917,2]
[374214809,1753246235478,-500.0,0.00021917,2]
[374214810,1753246235489,-500.0,0.00021917,2]
[374214811,1753246235499,-372.92,0.00021917,2]
[374214812,1753246235509,-460.0,0.00021917,2]
[374214813,1753246235518,-460.0,0.00021917,2]
[374214814,1753246235528,-460.0,0.00021917,2]
[374214815,1753246235538,-464.13273388,0.00021917,2]
[374214816,1753246235547,-462.32097694,0.00021917,2]
[374214817,1753246235557,-90.37515503,0.00021917,2]
[374214931,1753246240144,-369.62484497,0.00021917,2]
[374214933,1753246240154,-460.0,0.00021917,2]
[374214935,1753246240164,-460.0,0.00021917,2]
[374214937,1753246240173,-460.0,0.00021917,2]
[374214939,1753246240183,-460.0,0.00021917,2]
[374214941,1753246240192,-463.50858852,0.00021917,2]
[374214943,1753246240201,-460.0,0.00021917,2]
[374214945,1753246240211,-460.0,0.00021917,2]
[374214947,1753246240220,-460.0,0.00021917,2]
[374214949,1753246240229,-460.0,0.00021917,2]
[374214951,1753246240239,-460.0,0.00021917,2]
[374214953,1753246240248,-463.61750273,0.00021917,2]
[374214955,1753246240258,-460.0,0.00021917,2]
[374214957,1753246240267,-441.58925699,0.00021917,2]
[374214958,1753246240277,-461.50763155,0.00021917,2]
[374214960,1753246240286,-460.58917293,0.00021917,2]
[374214962,1753246240295,-460.0,0.00021917,2]
[374214964,1753246240304,-460.0,0.00021917,2]
[374214966,1753246240313,-460.0,0.00021917,2]
[374214968,1753246240323,-460.0,0.00021917,2]
[374214970,1753246240336,-460.0,0.00021917,2]
[374214972,1753246240346,-460.0,0.00021917,2]
[374214974,1753246240355,-460.0,0.00021917,2]
[374214976,1753246240365,-227.99103924,0.00021917,2]
[374214978,1753246240374,-460.0,0.00021917,2]
[374214980,1753246240384,-462.54203478,0.00021917,2]
[374214982,1753246240393,-460.0,0.00021917,2]
[374214984,1753246240402,-460.0,0.00021917,2]
[374214986,1753246240412,-460.0,0.00021917,2]
[374214988,1753246240423,-460.0,0.00021917,2]
[374214990,1753246240432,-460.0,0.00021917,2]
[374214992,1753246240442,-460.73524908,0.00021917,2]
[374214994,1753246240452,-460.0,0.00021917,2]
[374214996,1753246240463,-460.0,0.00021917,2]
[374214998,1753246240472,-502.912933,0.00021917,2]
[374215000,1753246240482,-460.0,0.00021917,2]
[374215002,1753246240493,-460.0,0.00021917,2]
[374215004,1753246240502,-460.0,0.00021917,2]
[374215006,1753246240512,-462.57533692,0.00021917,2]
[374215008,1753246240522,-460.0,0.00021917,2]
[374215010,1753246240533,-460.0,0.00021917,2]
[374215012,1753246240542,-460.0,0.00021917,2]
[374215014,1753246240551,-460.0,0.00021917,2]
[374215016,1753246240561,-460.0,0.00021917,2]
[374215018,1753246240571,-460.0,0.00021917,2]
[374215020,1753246240580,-460.0,0.00021917,2]
[374215022,1753246240589,-462.90151327,0.00021917,2]
[374215024,1753246240599,-263.97060594,0.00021917,2]
[374215026,1753246240608,-460.0,0.00021917,2]
[374215028,1753246240618,-460.0,0.00021917,2]
[374215030,1753246240627,-460.0,0.00021917,2]
[374215032,1753246240637,-460.0,0.00021917,2]
[374215034,1753246240646,-460.0,0.00021917,2]
[374215036,1753246240655,-460.0,0.00021917,2]
[374215038,1753246240665,-460.0,0.00021917,2]
[374215040,1753246240674,-460.0,0.00021917,2]
[374215042,1753246240683,-460.0,0.00021917,2]
[374215044,1753246240693,-460.0,0.00021917,2]
[374215046,1753246240703,-460.0,0.00021917,2]
[374215048,1753246240712,-460.0,0.00021917,2]
[374215050,1753246240723,-460.0,0.00021917,2]
[374215052,1753246240735,-460.0,0.00021917,2]
[374215054,1753246240744,-460.0,0.00021917,2]
[374215056,1753246240754,-852.91,0.00021917,2]
[374215058,1753246240763,-460.0,0.00021917,2]
[374215060,1753246240774,-460.0,0.00021917,2]
[374215062,1753246240783,-460.0,0.00021917,2]
[374215064,1753246240794,-560.80623138,0.00021917,2]
[374215066,1753246240803,-462.83011107,0.00021917,2]
[374215068,1753246240813,-460.0,0.00021917,2]
[374215070,1753246240823,-460.0,0.00021917,2]
[374215072,1753246240832,-460.0,0.00021917,2]
[374215074,1753246240842,-510.39411132,0.00021917,2]
[374215077,1753246240852,-460.0,0.00021917,2]
[374215079,1753246240862,-460.0,0.00021917,2]
[374215081,1753246240871,-460.0,0.00021917,2]
[374215083,1753246240881,-460.0,0.00021917,2]
[374215085,1753246240890,-460.0,0.00021917,2]
[374215087,1753246240900,-243.46606917,0.00021917,2]
[374215089,1753246240909,-460.0,0.00021917,2]
[374215091,1753246240919,-460.0,0.00021917,2]
[374215092,1753246240928,-460.0,0.00021917,2]
[374215095,1753246240938,-467.73944377,0.00021917,2]
[374215096,1753246240948,-460.0,0.00021917,2]
[374215098,1753246240958,-460.0,0.00021917,2]
[374215101,1753246240968,-462.67029886,0.00021917,2]
[374215102,1753246240978,-460.0,0.00021917,2]
[374215104,1753246240987,-460.0,0.00021917,2]
[374215106,1753246240997,-460.0,0.00021917,2]
[374215108,1753246241007,-460.68381771,0.00021917,2]
[374215111,1753246241016,-460.0,0.00021917,2]
[374215112,1753246241026,-460.0,0.00021917,2]
[374215114,1753246241035,-460.0,0.00021917,2]
[374215116,1753246241044,-460.0,0.00021917,2]